bitfinex-derivatives/quotes_SOLF0:USTF0_20250329
["timestamp","ask_amount","ask_price","bid_price","bid_amount"]
[1743248569005,18.575404,124.7,124.67,0.05577833]
[1743248569709,8.0237,124.69,124.67,0.05577833]
[1743248570107,8.0241,124.69,124.67,0.05577833]
[1743248570609,18.575404,124.7,124.67,0.05577833]
[1743248570811,8.0243,124.68,124.67,0.05577833]
[1743248571411,18.575404,124.7,124.67,0.05577833]
[1743248571809,12.04768971,124.7,124.67,0.05577833]
[1743248572012,0.05108971,124.7,124.67,0.05577833]
[1743248573008,8.0241,124.69,124.67,0.05577833]
[1743248573913,8.0243,124.68,124.67,0.05577833]
[1743248578115,0.05108971,124.7,124.67,0.05577833]
[1743248578311,0.05108971,124.7,124.67,37.21577833]
[1743248579308,8.07438971,124.7,124.67,37.21577833]
[1743248580314,0.05108971,124.7,124.67,37.21577833]
[1743248580518,0.05108971,124.7,124.67,51.76689262]
[1743248581024,0.05108971,124.7,124.67,37.21577833]
[1743248581518,8.07418971,124.7,124.67,37.21577833]
[1743248581715,0.05108971,124.7,124.67,37.21577833]
[1743248582416,0.05108971,124.7,124.69,8.0237]
[1743248582718,0.05108971,124.7,124.69,22.57481429]
[1743248583016,0.05108971,124.7,124.69,14.55111429]
[1743248584321,0.05108971,124.7,124.68,8.0241]
[1743248584322,0.05108971,124.7,124.67,37.21577833]
[1743248585417,0.05108971,124.7,124.67,45.24077833]
[1743248585813,0.05108971,124.7,124.67,37.21577833]
[1743248586420,0.05108971,124.7,124.67,45.24047833]
[1743248586620,0.05108971,124.7,124.67,37.21577833]
[1743248587520,0.05108971,124.7,124.69,8.0237]
[1743248588525,0.05108971,124.7,124.68,8.024]
[1743248588721,0.05108971,124.7,124.67,51.76689262]
[1743248590524,0.05108971,124.7,124.67,59.79179262]
[1743248590925,0.05108971,124.7,124.67,51.76689262]
[1743248591420,0.05108971,124.7,124.69,8.0237]
[1743248592220,43.90877207,124.81,124.71,8.0224]
[1743248592529,43.90877207,124.81,124.75,14.55111429]
[1743248592825,43.90877207,124.81,124.76,37.12]
[1743248592826,51.92507207,124.81,124.76,37.12]
[1743248593024,8.0163,124.81,124.76,37.12]
[1743248593226,8.0166,124.8,124.76,37.12]
[1743248593614,0.059661,124.79,124.77,0.05574242]
[1743248593818,8.077561,124.79,124.77,0.05574242]
[1743248594119,0.059661,124.79,124.77,0.05574242]
[1743248595625,8.076961,124.79,124.77,0.05574242]
[1743248596626,8.0179,124.78,124.77,0.05574242]
[1743248597828,8.0195,124.76,124.71,55.79211429]
[1743248598324,8.0189,124.77,124.72,9.47470704]
[1743248598528,8.0189,124.77,124.72,8.0217]
[1743248598726,51.65111429,124.8,124.72,8.0217]
[1743248598924,0.05269083,124.76,124.73,0.05257357]
[1743248599519,14.60380512,124.76,124.73,0.05257357]
[1743248600227,0.05269083,124.76,124.73,0.05257357]
[1743248600731,8.0198,124.75,124.73,0.05257357]
[1743248602021,0.05269083,124.76,124.73,14.60368786]
[1743248602530,0.05269083,124.76,124.74,8.0201]
[1743248604121,0.05269083,124.76,124.73,26.95738786]
[1743248604326,0.05269083,124.76,124.73,18.93648786]
[1743248604726,8.07239083,124.76,124.73,18.93648786]
[1743248604932,0.05269083,124.76,124.73,18.93648786]
[1743248605526,0.05269083,124.76,124.73,26.95738786]
[1743248605727,0.05269083,124.76,124.73,18.93648786]
[1743248608036,0.05269083,124.76,124.74,8.0204]
[1743248608340,0.05269083,124.76,124.73,18.93648786]
[1743248608537,0.05269083,124.76,124.73,26.95728786]
[1743248611139,0.05269083,124.76,124.74,8.0204]
[1743248612141,0.05269083,124.76,124.75,8.0198]
[1743248612345,0.05269083,124.76,124.75,22.57091429]
[1743248613232,8.0163,124.81,124.76,8.0186]
[1743248613540,8.0163,124.81,124.76,45.0586]
[1743248614335,8.0176,124.79,124.74,8.0201]
[1743248614541,8.0176,124.79,124.77,0.05118677]
[1743248614740,0.0507148,124.8,124.77,0.05118677]
[1743248614936,8.0675148,124.8,124.77,0.05118677]
[1743248615137,0.0507148,124.8,124.77,0.05118677]
[1743248615743,8.0674148,124.8,124.77,0.05118677]
[1743248616943,14.55111429,124.79,124.77,0.05118677]
[1743248617440,14.55111429,124.79,124.73,37.02]
[1743248618043,8.0195,124.76,124.73,37.02]
[1743248618441,14.55111429,124.77,124.69,265.97451012]
[1743248618636,8.0212,124.73,124.69,309.6234]
[1743248618836,8.0212,124.73,124.72,0.05130675]
[1743248620440,8.0229,124.71,124.67,41.0956]
[1743248620637,14.55111429,124.73,124.67,4.0756]
[1743248620842,8.0235,124.7,124.67,41.0956]
[1743248621041,8.0235,124.7,124.67,4.0756]
[1743248621241,14.55111429,124.73,124.67,4.0756]
[1743248621441,14.55111429,124.73,124.66,37.02]
[1743248621637,0.05117611,124.71,124.69,0.05822045]
[1743248624746,8.07397611,124.71,124.69,0.05822045]
[1743248625541,0.05117611,124.71,124.69,0.05822045]
[1743248625746,3.9746,124.76,124.7,51.55111429]
[1743248625940,8.0197,124.76,124.7,55.87021429]
[1743248626145,8.0197,124.76,124.72,14.55111429]
[1743248626542,14.55111429,124.79,124.72,22.57251429]
[1743248626745,8.0188,124.77,124.72,22.57251429]
[1743248627047,8.06949371,124.77,124.74,0.05784449]
[1743248627542,0.05069371,124.77,124.74,51.60895878]
[1743248627849,14.601808,124.77,124.74,0.05784449]
[1743248628049,8.0198,124.75,124.74,0.05784449]
[1743248628249,0.05069371,124.77,124.74,0.05784449]
[1743248629651,8.0198,124.75,124.74,0.05784449]
[1743248630547,0.05069371,124.77,124.74,0.05784449]
[1743248630950,8.0193,124.76,124.74,0.05784449]
[1743248631249,0.05069371,124.77,124.74,0.05784449]
[1743248632353,8.06959371,124.77,124.74,0.05784449]
[1743248634654,0.05069371,124.77,124.74,0.05784449]
[1743248635155,8.06929371,124.77,124.74,0.05784449]
[1743248635658,8.0198,124.75,124.74,0.05784449]
[1743248637359,8.0222,124.72,124.68,14.55111429]
[1743248637555,8.0222,124.72,124.66,18.67781429]
[1743248637859,14.55111429,124.72,124.67,38.41337298]
[1743248638054,14.55111429,124.72,124.67,36.96]
[1743248638265,14.55111429,124.72,124.65,89.0601922]
[1743248638470,0.05591849,124.71,124.68,0.05694388]
[1743248639057,14.55111429,124.7,124.65,89.0601922]
[1743248639367,14.55111429,124.68,124.65,89.0601922]
[1743248639568,8.0256,124.66,124.65,89.0601922]
[1743248639770,22.57671429,124.66,124.65,89.0601922]
[1743248639965,14.55111429,124.66,124.62,0.45265]
[1743248640266,8.08527697,124.65,124.63,0.05574823]
[1743248642675,0.05897697,124.65,124.63,0.05574823]
[1743248643266,8.08527697,124.65,124.63,0.05574823]
[1743248644772,0.05897697,124.65,124.63,0.05574823]
[1743248645872,0.05897697,124.65,124.64,36.96]
[1743248649974,0.05897697,124.65,124.64,44.9869]
[1743248650178,364.0,124.78,124.64,51.51111429]
[1743248650375,4.3537,124.74,124.68,8.024]
[1743248650677,8.0215,124.73,124.68,44.964]
[1743248651275,8.0215,124.73,124.69,0.05985447]
[1743248651476,0.05822173,124.72,124.69,0.05985447]
[1743248652181,8.08002173,124.72,124.69,0.05985447]
[1743248652577,14.55111429,124.71,124.69,0.05985447]
[1743248652785,8.023,124.7,124.69,0.05985447]
[1743248653580,14.55111429,124.71,124.65,36.94]
[1743248653780,18.83471429,124.71,124.65,36.94]
[1743248654176,8.0248,124.68,124.65,36.94]
[1743248654582,8.0252,124.67,124.65,36.94]
[1743248654771,8.0252,124.67,124.65,37.00010874]
[1743248656081,8.0255,124.67,124.65,37.00010874]
[1743248656581,0.0574976,124.68,124.65,37.00010874]
[1743248657178,8.0253,124.67,124.65,37.00010874]
[1743248657577,8.0256,124.66,124.65,37.00010874]
[1743248657884,8.0256,124.66,124.62,8.48055]
[1743248657885,14.55111429,124.67,124.62,0.45265]
[1743248658681,8.0276,124.63,124.62,0.45265]
[1743248659180,22.57871429,124.63,124.62,0.45265]
[1743248659985,22.57871429,124.63,124.55,3.965]
[1743248659986,22.57111429,124.63,124.55,3.965]
[1743248660179,14.55111429,124.61,124.55,3.965]
[1743248660486,8.0305,124.59,124.55,11.9977]
[1743248660685,14.55111429,124.61,124.55,3.965]
[1743248661184,0.05608877,124.59,124.57,0.05186785]
[1743248661573,8.031,124.58,124.57,0.05186785]
[1743248661774,14.60720306,124.59,124.52,40.886]
[1743248661977,14.55111429,124.59,124.52,40.886]
[1743248662377,14.55111429,124.57,124.52,3.966]
[1743248662581,14.55111429,124.57,124.5,14.55111429]
[1743248662785,14.55111429,124.57,124.51,1.45539618]
[1743248662986,36.92,124.6,124.52,0.05428961]
[1743248662987,0.06087686,124.55,124.52,0.05428961]
[1743248663285,0.06087686,124.55,124.5,9.49152602]
[1743248663485,0.06087686,124.55,124.52,0.05604772]
[1743248663783,8.0334,124.54,124.52,0.05604772]
[1743248664477,8.034,124.53,124.52,0.05604772]
[1743248664783,23.40370658,124.54,124.48,89.0601922]
[1743248664986,8.0354,124.51,124.48,89.0601922]
[1743248665488,8.0354,124.51,124.46,8.0381]
[1743248665978,8.09373852,124.5,124.47,0.05348078]
[1743248666581,8.0366,124.49,124.47,0.05348078]
[1743248667285,8.0372,124.48,124.47,0.05348078]
[1743248667485,0.05773852,124.5,124.47,0.05348078]
[1743248667882,8.0372,124.48,124.47,0.05348078]
[1743248668477,8.039,124.46,124.4,4.0376]
[1743248668682,60.32370658,124.48,124.4,4.3402]
[1743248669082,8.0381,124.47,124.41,1.45666191]
[1743248669282,36.92,124.48,124.42,36.92]
[1743248669480,23.40370658,124.5,124.42,36.92]
[1743248669681,0.05935259,124.46,124.42,36.92]
[1743248669881,0.05935259,124.46,124.41,36.92]
[1743248670388,8.0393,124.45,124.41,36.92]
[1743248670782,8.09805259,124.46,124.41,36.92]
[1743248671489,0.05935259,124.46,124.41,36.92]
[1743248672783,0.05935259,124.46,124.42,8.0408]
[1743248673487,0.05935259,124.46,124.43,8.0404]
[1743248673684,0.05935259,124.46,124.41,36.92]
[1743248673884,0.05935259,124.46,124.41,60.32370658]
[1743248674183,0.05935259,124.46,124.44,8.0392]
[1743248674887,0.05935259,124.46,124.44,8.0393]
[1743248675283,0.05935259,124.46,124.41,36.92]
[1743248675887,0.05935259,124.46,124.42,8.0411]
[1743248676190,0.05935259,124.46,124.41,36.92]
[1743248676489,8.09815259,124.46,124.41,44.9617]
[1743248676788,8.09815259,124.46,124.41,36.92]
[1743248676990,0.05935259,124.46,124.42,8.0411]
[1743248677286,0.05935259,124.46,124.41,36.92]
[1743248677885,0.05935259,124.46,124.42,1.45646642]
[1743248678087,27.57310658,124.52,124.43,23.40370658]
[1743248678384,8.0357,124.51,124.46,8.0384]
[1743248678788,12.2045,124.52,124.47,8.0376]
[1743248678989,8.0351,124.52,124.47,8.0376]
[1743248679289,0.06121602,124.51,124.48,0.05750993]
[1743248679587,8.09671602,124.51,124.48,0.05750993]
[1743248680389,8.036,124.5,124.48,0.05750993]
[1743248680791,0.06121602,124.51,124.48,0.05750993]
[1743248680993,8.09681602,124.51,124.48,0.05750993]
[1743248683191,0.06121602,124.51,124.48,0.05750993]
[1743248683391,0.06121602,124.51,124.49,36.9]
[1743248683690,629.02,124.57,124.49,36.9]
[1743248684086,629.02,124.57,124.51,8.0349]
[1743248684282,629.02,124.57,124.49,36.9]
[1743248684482,265.02,124.57,124.49,36.9]
[1743248684693,0.06135209,124.54,124.52,0.05115379]
[1743248685385,8.09475209,124.54,124.52,0.05115379]
[1743248685791,0.06135209,124.54,124.52,0.05115379]
[1743248686789,23.46505867,124.54,124.46,49.1914]
[1743248686987,23.40370658,124.54,124.46,49.1914]
[1743248687793,8.0363,124.5,124.46,49.1914]
[1743248688097,8.0363,124.5,124.49,0.05817056]
[1743248688294,23.40370658,124.52,124.45,36.88]
[1743248688592,0.05776075,124.51,124.48,0.05104633]
[1743248689488,8.0364,124.5,124.48,0.05104633]
[1743248689889,0.05776075,124.51,124.48,0.05104633]
[1743248690796,0.05776075,124.51,124.49,8.0365]
[1743248691296,0.05776075,124.51,124.48,0.05104633]
[1743248691793,0.05776075,124.51,124.48,8.08784633]
[1743248692196,0.05776075,124.51,124.48,0.05104633]
[1743248692395,0.05776075,124.51,124.49,8.0362]
[1743248693996,0.05776075,124.51,124.48,8.08794633]
[1743248694498,23.40370658,124.59,124.49,36.86]
[1743248694698,23.40370658,124.59,124.49,41.1031]
[1743248694890,8.0321,124.56,124.49,45.1747]
[1743248695296,23.40370658,124.59,124.49,45.1747]
[1743248695496,36.86,124.6,124.5,23.40370658]
[1743248695700,0.05388939,124.55,124.53,0.05261871]
[1743248696000,8.0311,124.58,124.53,44.94641871]
[1743248696196,0.05413727,124.55,124.53,36.91261871]
[1743248696398,36.86,124.6,124.53,36.91261871]
[1743248696602,8.09002008,124.55,124.53,0.05261871]
[1743248696899,8.09074936,124.55,124.53,0.05261871]
[1743248697198,8.0334,124.54,124.53,0.05261871]
[1743248697502,0.05774936,124.55,124.53,0.05261871]
[1743248697701,8.09094936,124.55,124.53,0.05261871]
[1743248698402,8.0334,124.54,124.53,0.05261871]
[1743248699801,0.05774936,124.55,124.53,0.05261871]
[1743248703308,0.05774936,124.55,124.53,8.08661871]
[1743248703507,0.05774936,124.55,124.53,0.05261871]
[1743248703705,364.0,124.63,124.54,60.22370658]
[1743248703898,41.087,124.65,124.56,23.40370658]
[1743248704209,387.40370658,124.67,124.57,1.45540916]
[1743248704402,8.0294,124.61,124.58,36.82]
[1743248704602,23.40370658,124.65,124.58,36.87148297]
[1743248704809,0.05880985,124.61,124.58,36.87148297]
[1743248705105,8.0271,124.64,124.58,36.82]
[1743248705309,0.06047351,124.61,124.58,36.87431054]
[1743248705509,23.40370658,124.67,124.58,36.82]
[1743248705709,0.05266423,124.61,124.58,36.87375917]
[1743248705907,23.40370658,124.67,124.58,44.8507]
[1743248706209,23.40370658,124.67,124.58,60.22370658]
[1743248706411,0.0564907,124.64,124.61,0.05199867]
[1743248707305,8.0282,124.62,124.61,0.05199867]
[1743248708205,8.0278,124.63,124.61,0.05199867]
[1743248708504,0.0564907,124.64,124.61,0.05199867]
[1743248709005,0.0564907,124.64,124.62,36.78]
[1743248709515,0.0564907,124.64,124.62,40.896]
[1743248709916,0.0564907,124.64,124.61,0.05199867]
[1743248710109,8.0282,124.62,124.61,0.05199867]
[1743248711608,8.0317,124.57,124.52,23.40370658]
[1743248711812,68.36670658,124.63,124.53,38.23491128]
[1743248712113,64.13380658,124.63,124.54,1.45491128]
[1743248712517,40.7301,124.63,124.54,1.45491128]
[1743248712712,40.7301,124.63,124.56,8.032]
[1743248712909,0.05294139,124.6,124.57,38.29008303]
[1743248713110,0.05294139,124.6,124.57,36.83517175]
[1743248713513,0.05294139,124.6,124.58,4.3257]
[1743248713711,8.08264139,124.6,124.58,4.3257]
[1743248713914,0.05294139,124.6,124.58,4.3257]
[1743248714113,8.08274139,124.6,124.58,4.3257]
[1743248714916,0.05294139,124.6,124.58,4.3257]
[1743248716921,64.32570658,124.69,124.58,31.82490658]
[1743248717123,64.32570658,124.69,124.59,1.45449333]
[1743248717420,8.0267,124.65,124.59,9.48439333]
[1743248717616,8.0267,124.65,124.59,8.0299]
[1743248717821,8.0267,124.65,124.6,1.45448288]
[1743248718021,0.06057787,124.63,124.61,36.81271716]
[1743248719121,0.06057787,124.63,124.61,0.05271716]
[1743248719715,8.0282,124.62,124.61,0.05271716]
[1743248720621,8.0305,124.59,124.57,1.4547708]
[1743248720925,23.40370658,124.63,124.56,36.76]
[1743248721125,8.0297,124.6,124.56,36.76]
[1743248721821,0.06105625,124.59,124.57,0.05109663]
[1743248723320,0.06105625,124.59,124.58,8.0308]
[1743248723529,8.0273,124.64,124.57,0.05109663]
[1743248723731,4.0653,124.66,124.57,5.58741406]
[1743248723924,8.0271,124.64,124.57,4.0815]
[1743248724125,4.0653,124.66,124.58,24.85829185]
[1743248724324,64.26740658,124.69,124.59,1.45458527]
[1743248724526,0.06149194,124.63,124.61,0.0591879]
[1743248724728,8.0257,124.66,124.6,60.14370658]
[1743248725040,0.0542424,124.63,124.61,0.05488547]
[1743248725232,8.0253,124.67,124.61,1.45428556]
[1743248725539,0.05404466,124.63,124.62,8.0282]
[1743248725729,8.0253,124.67,124.62,8.0282]
[1743248725933,0.05457878,124.64,124.62,8.0282]
[1743248726133,0.05457878,124.64,124.61,8.08722339]
[1743248726332,0.05457878,124.64,124.61,0.05862339]
[1743248726528,0.05457878,124.64,124.62,8.0282]
[1743248726840,0.05457878,124.64,124.61,0.05862339]
[1743248727136,8.08167878,124.64,124.61,0.05862339]
[1743248727535,0.05457878,124.64,124.61,0.05862339]
[1743248729446,0.05457878,124.64,124.61,8.08712339]
[1743248729841,0.05457878,124.64,124.61,0.05862339]
[1743248730141,0.05457878,124.64,124.62,8.0276]
[1743248731043,0.05457878,124.64,124.63,8.0276]
[1743248731640,8.024,124.69,124.64,8.0267]
[1743248731844,4.1573,124.7,124.64,44.7267]
[1743248732246,8.024,124.69,124.64,44.7267]
[1743248732644,8.0263,124.65,124.64,36.7]
[1743248732948,8.0263,124.65,124.61,36.7]
[1743248733247,8.0258,124.66,124.63,0.05381621]
[1743248733446,0.05215452,124.64,124.63,0.05381621]
[1743248733944,8.07905452,124.64,124.63,0.05381621]
[1743248734243,8.0295,124.61,124.55,23.40370658]
[1743248734449,60.10370658,124.65,124.56,38.15457803]
[1743248734639,4.1174,124.64,124.57,1.45457803]
[1743248734843,44.7266,124.65,124.57,24.85828461]
[1743248735046,8.0266,124.65,124.58,1.45457803]
[1743248735350,8.0266,124.65,124.6,8.0294]
[1743248735544,0.05740367,124.63,124.61,36.7]
[1743248736239,4.1174,124.68,124.61,60.10370658]
[1743248736546,64.30470658,124.71,124.61,60.10370658]
[1743248736849,8.0243,124.68,124.63,8.0272]
[1743248737449,0.0571484,124.67,124.64,0.05712665]
[1743248737651,0.0571484,124.67,124.64,8.08352665]
[1743248737948,0.0571484,124.67,124.65,36.68]
[1743248739546,8.0824484,124.67,124.65,36.68]
[1743248739747,0.0571484,124.67,124.65,36.68]
[1743248739951,8.0256,124.66,124.64,0.05712665]
[1743248740255,0.0571484,124.67,124.64,0.05712665]
[1743248741350,8.0827484,124.67,124.64,0.05712665]
[1743248741750,0.0571484,124.67,124.64,0.05712665]
[1743248741955,8.0823484,124.67,124.64,8.08392665]
[1743248742253,0.0571484,124.67,124.64,0.05712665]
[1743248744348,8.0263,124.65,124.64,0.05712665]
[1743248744950,14.59290462,124.65,124.53,364.0]
[1743248745152,14.59290462,124.63,124.57,36.66]
[1743248746049,14.59290462,124.63,124.56,14.59290462]
[1743248746250,0.05566758,124.61,124.59,0.06113885]
[1743248746552,8.0295,124.6,124.59,0.06113885]
[1743248747550,0.05566758,124.61,124.55,1.45492986]
[1743248747750,0.05566758,124.61,124.53,22.57411608]
[1743248747751,23.38364757,124.6,124.53,22.57411608]
[1743248747947,23.38364757,124.6,124.54,1.45513634]
[1743248748346,23.38364757,124.6,124.53,36.66]
[1743248748759,8.0322,124.56,124.55,0.06123474]
[1743248750557,0.05858554,124.58,124.55,0.06123474]
[1743248751154,8.0319,124.57,124.55,0.06123474]
[1743248751955,8.0321,124.56,124.55,0.06123474]
[1743248752153,0.05858554,124.58,124.55,0.06123474]
[1743248752555,8.0319,124.57,124.55,0.06123474]
[1743248753058,0.05858554,124.58,124.55,0.06123474]
[1743248753648,0.05858554,124.58,124.56,36.64]
[1743248754555,8.08988554,124.58,124.56,36.64]
[1743248754755,0.05858554,124.58,124.56,36.64]
[1743248755854,0.05858554,124.58,124.57,8.0314]
[1743248756059,0.05858554,124.58,124.56,36.64]
[1743248757061,0.05858554,124.58,124.55,0.06123474]
[1743248757257,8.08938554,124.58,124.55,0.06123474]
[1743248757459,0.05858554,124.58,124.55,0.06123474]
[1743248758062,8.0321,124.56,124.55,0.06123474]
[1743248758667,8.0317,124.57,124.55,0.06123474]
[1743248758868,0.05858554,124.58,124.55,0.06123474]
[1743248759167,8.08938554,124.58,124.55,0.06123474]
[1743248759461,0.05858554,124.58,124.55,0.06123474]
[1743248760868,0.05858554,124.58,124.56,8.0317]
[1743248761166,0.05858554,124.58,124.57,36.62]
[1743248761572,0.05858554,124.58,124.57,44.6514]
[1743248761965,8.0277,124.63,124.57,36.62]
[1743248762364,8.0277,124.63,124.58,5.71308505]
[1743248762560,8.0271,124.64,124.59,8.0297]
[1743248762766,60.00364757,124.7,124.58,27.64204757]
[1743248762961,64.28554757,124.7,124.6,23.38364757]
[1743248763166,0.05548227,124.65,124.62,0.05299485]
[1743248764169,0.05548227,124.65,124.62,1.50718694]
[1743248764872,0.05548227,124.65,124.62,24.89083451]
[1743248765070,0.05548227,124.65,124.62,23.43664242]
[1743248765275,0.05548227,124.65,124.62,0.05299485]
[1743248765670,8.08208227,124.65,124.62,0.05299485]
[1743248767471,8.0276,124.63,124.62,0.05299485]
[1743248767671,14.59667173,124.64,124.57,36.6]
[1743248767970,14.59667173,124.62,124.57,36.6]
[1743248768469,8.0306,124.59,124.57,36.6]
[1743248768670,14.59667173,124.62,124.57,36.6]
[1743248768876,0.05570914,124.59,124.57,36.65521603]
[1743248769078,23.37385406,124.65,124.57,44.631]
[1743248769267,0.0565394,124.59,124.57,36.65220545]
[1743248769473,23.37385406,124.63,124.57,36.6]
[1743248769779,0.05174842,124.59,124.57,36.65817768]
[1743248769970,23.37385406,124.65,124.57,36.6]
[1743248770166,0.05911843,124.59,124.57,36.65789795]
[1743248770365,0.06073019,124.59,124.57,36.6]
[1743248770574,0.06073019,124.59,124.57,36.65124998]
[1743248770969,0.06073019,124.59,124.58,8.0307]
[1743248771175,63.93075406,124.67,124.57,36.65124998]
[1743248771378,63.93075406,124.67,124.57,36.6]
[1743248771671,3.9569,124.67,124.58,23.37385406]
[1743248771875,3.9569,124.67,124.59,1.45467487]
[1743248772079,11.9823,124.67,124.61,8.0285]
[1743248772278,0.05665309,124.64,124.62,36.63856112]
[1743248773573,0.05665309,124.64,124.62,44.66626112]
[1743248773772,0.05665309,124.64,124.62,36.63856112]
[1743248773972,63.98195406,124.71,124.62,36.63856112]
[1743248774176,8.0244,124.68,124.62,36.58]
[1743248774678,68.21255406,124.71,124.62,36.58]
[1743248774880,8.0241,124.69,124.62,36.58]
[1743248775180,0.05292293,124.67,124.64,0.05231884]
[1743248775877,0.05292293,124.67,124.64,8.07891884]
[1743248776980,0.05292293,124.67,124.64,23.4261729]
[1743248777180,0.05292293,124.67,124.64,0.05231884]
[1743248777577,0.05292293,124.67,124.65,8.0262]
[1743248778184,0.05292293,124.67,124.64,8.07891884]
[1743248778388,0.05292293,124.67,124.64,0.05231884]
[1743248778780,0.05292293,124.67,124.65,8.0262]
[1743248778980,0.05292293,124.67,124.64,23.4261729]
[1743248779174,0.05292293,124.67,124.64,27.5959729]
[1743248779382,0.05292293,124.67,124.65,8.0258]
[1743248779573,0.05292293,124.67,124.66,36.56]
[1743248779977,0.05292293,124.67,124.66,44.5856]
[1743248780298,0.05292293,124.67,124.66,36.56]
[1743248781586,0.05292293,124.67,124.66,44.5856]
[1743248784485,0.05292293,124.67,124.66,36.56]
[1743248785092,0.05292293,124.67,124.64,8.07881884]
[1743248785494,0.05292293,124.67,124.64,0.05231884]
[1743248785688,0.05292293,124.67,124.66,8.0256]
[1743248789797,12.1534,124.72,124.68,8.0242]
[1743248790291,12.0247,124.74,124.67,36.52]
[1743248790494,4.0039,124.74,124.67,36.52]
[1743248790887,4.0039,124.74,124.71,8.0223]
[1743248791093,0.05760544,124.72,124.71,8.0223]
[1743248792492,364.0,124.82,124.71,36.5]
[1743248792698,8.017,124.8,124.73,14.58018044]
[1743248793105,8.3279,124.81,124.73,14.58018044]
[1743248793295,16.3442,124.81,124.73,14.58018044]
[1743248793497,8.3279,124.81,124.73,14.58018044]
[1743248793798,8.3279,124.81,124.76,0.0610866]
[1743248793799,0.05754979,124.78,124.76,0.0610866]
[1743248794700,0.05754979,124.78,124.77,8.0185]
[1743248798103,0.05754979,124.78,124.77,22.59868044]
[1743248798509,18.86168044,124.86,124.81,8.0156]
[1743248798697,26.87478044,124.86,124.81,8.0156]
[1743248799104,18.86168044,124.86,124.79,51.06018044]
[1743248799508,18.86168044,124.86,124.79,36.48]
[1743248799807,14.58018044,124.82,124.74,36.48]
[1743248800606,8.0169,124.8,124.75,8.0194]
[1743248800806,14.58018044,124.82,124.75,8.0194]
[1743248801009,14.58018044,124.82,124.74,36.48]
[1743248801216,8.018,124.78,124.77,0.05766066]
[1743248802004,8.0177,124.79,124.77,0.05766066]
[1743248802408,0.05579044,124.8,124.77,0.05766066]
[1743248802613,8.0174,124.79,124.77,0.05766066]
[1743248803408,14.63597088,124.8,124.77,0.05766066]
[1743248803608,4.0718,124.79,124.77,0.05766066]
[1743248803803,12.0896,124.79,124.77,0.05766066]
[1743248804008,4.0718,124.79,124.77,0.05766066]
[1743248804408,12.0896,124.79,124.77,0.05766066]
[1743248805913,8.0179,124.78,124.77,0.05766066]
[1743248807010,12.0892,124.79,124.77,0.05766066]
[1743248807716,8.0179,124.78,124.77,0.05766066]
[1743248808518,22.59808044,124.78,124.77,0.05766066]
[1743248808711,14.58018044,124.76,124.68,40.7699]
[1743248809112,14.58018044,124.76,124.69,9.47654561]
[1743248809419,8.0221,124.72,124.69,8.0234]
[1743248809623,51.02018044,124.74,124.65,14.58018044]
[1743248809824,8.0229,124.71,124.69,0.05494227]
[1743248810012,0.05684541,124.72,124.69,0.05494227]
[1743248810909,8.023,124.7,124.69,0.05494227]
[1743248811112,14.63702585,124.72,124.69,0.05494227]
[1743248811413,0.05684541,124.72,124.69,0.05494227]
[1743248811815,8.07884541,124.72,124.69,0.05494227]
[1743248813521,0.05684541,124.72,124.69,0.05494227]
[1743248814216,8.07874541,124.72,124.69,0.05494227]
[1743248814616,0.05684541,124.72,124.69,0.05494227]
[1743248814817,0.05684541,124.72,124.69,8.07854227]
[1743248816120,0.05684541,124.72,124.7,8.023]
[1743248816920,0.05684541,124.72,124.71,8.0224]
[1743248817422,0.05684541,124.72,124.7,8.0229]
[1743248817715,0.05684541,124.72,124.69,0.05494227]
[1743248817922,14.63702585,124.72,124.69,0.05494227]
[1743248818110,4.2135,124.71,124.69,0.05494227]
[1743248818520,8.023,124.7,124.69,0.05494227]
[1743248818720,4.2135,124.71,124.69,0.05494227]
[1743248820121,8.023,124.7,124.69,0.05494227]
[1743248820618,4.2135,124.71,124.69,0.05494227]
[1743248820827,12.236,124.71,124.69,0.05494227]
[1743248821324,0.05684541,124.72,124.69,8.07824227]
[1743248821525,0.05684541,124.72,124.69,0.05494227]
[1743248821719,0.05684541,124.72,124.69,14.63512271]
[1743248822028,0.05684541,124.72,124.71,22.60258044]
[1743248822225,16.3279,124.77,124.71,14.58018044]
[1743248822427,12.3453,124.77,124.72,36.42]
[1743248822618,12.3453,124.77,124.73,8.0208]
[1743248822823,12.3453,124.77,124.72,36.42]